[Event "Régional Jeunes Occitanie 2024"]
[Site "L'Isle Jourdain, France"]
[Date "2024.02.22"]
[Round "3.8"]
[White "MARTINEZ, Julien"]
[Black "DUQUESNE, Basile"]
[Result "1-0"]
[TimeControl "1h30 + 30s/cps"]
[WhiteElo "1556"]
[BlackElo "1225"]

1. d4 {[%clk 01:30:58]} {[%emt 00:00:01]} d5 {[%clk 01:30:59]} {[%emt
00:00:01]} 2. Nf3 {[%clk 01:31:26]} {[%emt 00:00:03]} Nf6 {[%clk 01:31:06]}
{[%emt 00:00:23]} 3. Bf4 {[%clk 01:31:48]} {[%emt 00:00:08]} e6 {[%clk
01:30:53]} {[%emt 00:00:42]} 4. e3 {[%clk 01:32:06]} {[%emt 00:00:12]} Bd6
{[%clk 01:30:32]} {[%emt 00:00:51]} 5. Ne5 {[%clk 01:32:28]} {[%emt 00:00:08]}
O-O {[%emt 00:02:40]} 6. g4 {[%clk 01:32:22]} h6 {[%clk 01:28:22]} {[%emt
00:01:06]} 7. h4 {[%clk 01:32:32]} {[%emt 00:00:20]} Bxe5 {[%clk 01:20:42]}
{[%emt 00:08:08]} 8. dxe5 {[%clk 01:31:22]} {[%emt 00:01:41]} Ne4 {[%clk
01:16:03]} {[%emt 00:05:09]} 9. g5 {[%clk 01:31:14]} {[%emt 00:00:38]} hxg5
{[%clk 01:10:56]} {[%emt 00:05:37]} 10. hxg5 {[%clk 01:31:35]} {[%emt
00:00:09]} g6 {[%clk 01:08:14]} {[%emt 00:03:13]} 11. Qg4 {[%clk 01:28:34]}
{[%emt 00:03:30]} Re8 {[%clk 01:03:19]} {[%emt 00:05:25]} 12. f3 {[%clk
01:27:55]} {[%emt 00:01:09]} Nc5 {[%clk 00:59:46]} {[%emt 00:04:04]} 13. Qh4
{[%clk 01:25:56]} {[%emt 00:02:29]} Kf8 {[%clk 00:58:59]} {[%emt 00:01:18]} 14.
Qh8+ {[%clk 01:25:58]} {[%emt 00:00:27]} Ke7 {[%clk 00:59:11]} {[%emt
00:00:18]} 15. Qf6+ {[%clk 01:26:19]} {[%emt 00:00:09]} Kd7 {[%clk 00:59:15]}
{[%emt 00:00:26]} 16. Qxf7+ {[%clk 01:26:43]} {[%emt 00:00:07]} Re7 {[%clk
00:57:19]} {[%emt 00:02:25]} 17. Qxg6 {[%clk 01:26:44]} {[%emt 00:00:29]} Qe8
{[%clk 00:56:20]} {[%emt 00:01:29]} 18. Qxe8+ {[%clk 01:26:42]} {[%emt
00:00:32]} Rxe8 {[%clk 00:56:19]} {[%emt 00:00:30]} 19. Rh7+ {[%clk 01:26:49]}
{[%emt 00:00:23]} Kd8 {[%clk 00:56:02]} {[%emt 00:00:48]} 20. g6 {[%clk
01:26:46]} {[%emt 00:00:33]} Rg8 {[%clk 00:54:42]} {[%emt 00:01:50]} 21. Bg5+
{[%clk 01:24:08]} {[%emt 00:03:08]} Ke8 {[%clk 00:54:22]} {[%emt 00:00:50]} 22.
Re7+ {[%clk 01:12:59]} {[%emt 00:11:38]} Kf8 {[%clk 00:51:36]} {[%emt
00:03:17]} 23. Rxc7 {[%clk 01:12:05]} {[%emt 00:01:24]} Nbd7 {[%clk 00:48:25]}
{[%emt 00:03:41]} 24. b4 {[%clk 01:05:04]} {[%emt 00:07:32]} Na6 {[%clk
00:45:24]} {[%emt 00:03:31]} 25. Bxa6 {[%clk 01:05:25]} {[%emt 00:00:09]} bxa6
{[%clk 00:45:14]} {[%emt 00:00:39]} 26. Bf4 {[%clk 01:02:17]} {[%emt 00:03:39]}
Rxg6 {[%clk 00:43:02]} {[%emt 00:02:41]} 27. Kf2 {[%clk 01:01:58]} {[%emt
00:00:50]} Nb6 {[%clk 00:39:00]} {[%emt 00:04:32]} 28. Nd2 {[%clk 01:00:28]}
{[%emt 00:02:00]} Bd7 {[%clk 00:36:59]} {[%emt 00:02:30]} 29. Nb3 {[%clk
00:59:39]} {[%emt 00:01:19]} Rc8 {[%clk 00:36:17]} {[%emt 00:01:12]} 30. Rxc8+
{[%clk 00:59:53]} {[%emt 00:00:16]} Bxc8 {[%clk 00:36:20]} {[%emt 00:00:27]} 31.
Nc5 {[%clk 00:59:54]} {[%emt 00:00:29]} Nd7 {[%clk 00:35:02]} {[%emt 00:01:48]}
32. Nb3 {[%clk 00:59:42]} {[%emt 00:00:42]} Nb6 {[%clk 00:34:24]} {[%emt
00:01:08]} 33. Rh1 {[%clk 00:59:50]} {[%emt 00:00:20]} Kg8 {[%clk 00:33:13]}
{[%emt 00:01:42]} 34. Bg3 {[%clk 00:58:10]} {[%emt 00:02:10]} Rg5 {[%clk
00:32:04]} {[%emt 00:01:39]} 35. Nc5 {[%clk 00:58:09]} {[%emt 00:00:32]} Nc4
{[%clk 00:31:18]} {[%emt 00:01:16]} 36. f4 {[%clk 00:55:49]} {[%emt 00:02:50]}
Rf5 {[%clk 00:31:07]} {[%emt 00:00:39]} 37. Ke2 {[%clk 00:53:36]} {[%emt
00:02:44]} Rf7 {[%clk 00:30:11]} {[%emt 00:01:25]} 38. Rh6 {[%clk 00:51:15]}
{[%emt 00:02:51]} Re7 {[%clk 00:29:03]} {[%emt 00:01:39]} 39. Bh4 {[%clk
00:50:52]} {[%emt 00:00:53]} Re8 {[%clk 00:26:31]} {[%emt 00:03:02]} 40. Bf6
{[%clk 00:48:32]} {[%emt 00:02:50]} a5 {[%clk 00:23:36]} {[%emt 00:03:26]} 41.
bxa5 {[%clk 00:47:46]} {[%emt 00:01:16]} Nxa5 {[%clk 00:23:25]} {[%emt
00:00:41]} 42. Rh8+ {[%clk 00:48:09]} {[%emt 00:00:07]} Kf7 {[%clk 00:23:30]}
{[%emt 00:00:23]} 43. Rh7+ {[%clk 00:48:23]} {[%emt 00:00:17]} Kg6 {[%clk
00:23:16]} {[%emt 00:00:43]} 44. Rg7+ {[%clk 00:48:43]} {[%emt 00:00:12]} Kh6
{[%clk 00:22:26]} {[%emt 00:01:19]} 45. Rxa7 {[%clk 00:48:59]} {[%emt
00:00:14]} Nc6 {[%clk 00:22:08]} {[%emt 00:00:45]} 46. Ra4 {[%clk 00:45:38]}
{[%emt 00:03:53]} Rg8 {[%clk 00:20:46]} {[%emt 00:01:52]} 47. Kf2 {[%clk
00:44:51]} {[%emt 00:01:17]} Kg6 {[%clk 00:19:33]} {[%emt 00:01:43]} 48. c3
{[%clk 00:44:30]} {[%emt 00:00:51]} Kf5 {[%clk 00:18:56]} {[%emt 00:01:06]} 49.
Ra8 {[%clk 00:42:54]} {[%emt 00:02:07]} Kg4 {[%clk 00:16:51]} {[%emt 00:02:34]}
50. Nb7 {[%clk 00:42:08]} {[%emt 00:01:17]} Re8 {[%clk 00:14:36]} {[%emt
00:02:45]} 51. Nd6 {[%clk 00:42:23]} {[%emt 00:00:15]} 1-0

[Event "Régional Jeunes Occitanie 2024"]
[Site "L'Isle Jourdain, France"]
[Date "2024.02.22"]
[Round "3.6"]
[White "KARKOS, Paul"]
[Black "LAVAL, Nolan"]
[Result "0-1"]
[TimeControl "1h30 + 30s/cps"]
[WhiteElo "1277"]
[BlackElo "1454"]

1. e4 {[%clk 01:30:34]} {[%emt 00:00:24]} c5 {[%clk 01:30:53]} {[%emt
00:00:07]} 2. Nc3 {[%clk 01:30:37]} {[%emt 00:00:27]} Nc6 {[%clk 01:30:47]}
{[%emt 00:00:37]} 3. Bc4 {[%clk 01:30:58]} {[%emt 00:00:09]} e6 {[%clk
01:30:53]} {[%emt 00:00:24]} 4. Nge2 {[%clk 01:31:19]} {[%emt 00:00:09]} Nge7
{[%clk 01:30:55]} {[%emt 00:00:28]} 5. O-O {[%clk 01:31:29]} {[%emt 00:00:20]}
g6 {[%clk 01:30:32]} {[%emt 00:00:54]} 6. f4 {[%clk 01:31:17]} {[%emt
00:00:42]} d5 {[%clk 01:30:26]} {[%emt 00:00:36]} 7. exd5 {[%clk 01:29:39]}
{[%emt 00:02:08]} exd5 {[%clk 01:30:38]} {[%emt 00:00:18]} 8. Bb5 {[%clk
01:29:54]} {[%emt 00:00:14]} Bg7 {[%clk 01:29:18]} {[%emt 00:01:50]} 9. d3
{[%clk 01:19:52]} {[%emt 00:10:33]} O-O {[%clk 01:28:53]} {[%emt 00:00:55]} 10.
Bd2 {[%clk 01:18:51]} {[%emt 00:01:31]} Nd4 {[%clk 01:25:36]} {[%emt 00:03:47]}
11. Rb1 {[%clk 01:13:08]} {[%emt 00:06:13]} a6 {[%clk 01:24:13]} {[%emt
00:01:53]} 12. Bc4 {[%clk 00:59:28]} {[%emt 00:14:09]} dxc4 {[%clk 01:21:26]}
{[%emt 00:03:17]} 13. dxc4 {[%clk 00:59:15]} {[%emt 00:00:43]} Bf5 {[%clk
01:18:46]} {[%emt 00:03:10]} 14. Rc1 {[%clk 00:56:53]} {[%emt 00:02:50]} Nec6
{[%clk 01:13:48]} {[%emt 00:05:29]} 15. a3 {[%clk 00:56:24]} {[%emt 00:01:00]}
Re8 {[%clk 01:13:22]} {[%emt 00:00:56]} 16. Ng3 {[%clk 00:55:56]} {[%emt
00:00:58]} Qd7 {[%clk 01:10:37]} {[%emt 00:03:13]} 17. Be1 {[%clk 00:52:46]}
{[%emt 00:03:41]} Rad8 {[%clk 01:06:51]} {[%emt 00:04:16]} 18. Nd5 {[%clk
00:50:37]} {[%emt 00:02:39]} Bg4 {[%clk 01:04:31]} {[%emt 00:02:51]} 19. Qd2
{[%clk 00:48:22]} {[%emt 00:02:45]} Ne2+ {[%clk 01:03:24]} {[%emt 00:01:37]} 20.
Nxe2 {[%clk 00:48:39]} {[%emt 00:00:13]} Bxe2 {[%clk 01:03:33]} {[%emt
00:00:20]} 21. Rf2 {[%clk 00:48:48]} {[%emt 00:00:21]} Bd4 {[%clk 01:02:08]}
{[%emt 00:01:54]} 22. Qxd4 {[%clk 00:48:35]} {[%emt 00:00:45]} Nxd4 {[%clk
01:01:56]} {[%emt 00:00:42]} 23. Nf6+ {[%clk 00:48:57]} {[%emt 00:00:08]} Kg7
{[%clk 01:02:02]} {[%emt 00:00:23]} 24. Nxd7 {[%clk 00:49:19]} {[%emt
00:00:10]} Rxd7 {[%clk 01:02:19]} {[%emt 00:00:13]} 25. Kh1 {[%clk 00:48:56]}
{[%emt 00:00:53]} Bxc4 {[%clk 01:02:11]} {[%emt 00:00:38]} 26. Bc3 {[%clk
00:48:36]} {[%emt 00:00:50]} Kg8 {[%clk 01:01:14]} {[%emt 00:01:27]} 27. Bxd4
{[%clk 00:48:30]} {[%emt 00:00:36]} cxd4 {[%clk 01:01:16]} {[%emt 00:00:28]} 28.
b3 {[%clk 00:48:44]} {[%emt 00:00:17]} Bb5 {[%clk 01:01:10]} {[%emt 00:00:36]}
29. h4 {[%clk 00:48:11]} {[%emt 00:01:03]} Re2 {[%clk 01:00:31]} {[%emt
00:01:09]} 30. Rxe2 {[%clk 00:47:39]} {[%emt 00:01:02]} Bxe2 {[%clk 01:00:51]}
{[%emt 00:00:09]} 31. Kg1 {[%clk 00:48:07]} {[%emt 00:00:03]} Bg4 {[%clk
01:00:32]} {[%emt 00:00:49]} 32. Kf2 {[%clk 00:47:54]} {[%emt 00:00:42]} Kg7
{[%clk 01:00:38]} {[%emt 00:00:23]} 33. a4 {[%clk 00:47:28]} {[%emt 00:00:57]}
Kf6 {[%clk 01:00:55]} {[%emt 00:00:13]} 34. Re1 {[%clk 00:46:50]} {[%emt
00:01:08]} Bf5 {[%clk 01:00:48]} {[%emt 00:00:37]} 35. Re2 {[%clk 00:46:40]}
{[%emt 00:00:39]} Rc7 {[%clk 01:00:12]} {[%emt 00:01:05]} 36. b4 {[%clk
00:44:54]} {[%emt 00:02:18]} Rxc2 {[%clk 00:59:56]} {[%emt 00:00:46]} 37. Rxc2
{[%clk 00:45:07]} {[%emt 00:00:17]} Bxc2 {[%clk 01:00:19]} {[%emt 00:00:07]} 38.
a5 {[%clk 00:45:34]} {[%emt 00:00:03]} Ke6 {[%clk 01:00:36]} {[%emt 00:00:13]}
39. g3 {[%clk 00:45:36]} {[%emt 00:00:27]} f5 {[%clk 01:00:51]} {[%emt
00:00:15]} 40. Ke2 {[%clk 00:45:59]} {[%emt 00:00:08]} Kd5 {[%clk 01:00:55]}
{[%emt 00:00:26]} 0-1

[Event "Régional Jeunes Occitanie 2024"]
[Site "L'Isle Jourdain, France"]
[Date "2024.02.22"]
[Round "3.2"]
[White "BALDASSARI, Milan"]
[Black "MORENO-CHABOT, Clement"]
[Result "0-1"]
[TimeControl "1h30 + 30s/cps"]
[WhiteElo "1357"]
[BlackElo "1771"]

1. b3 {[%clk 01:30:58]} d5 {[%clk 01:30:29]} {[%emt 00:00:31]} 2. Bb2 {[%clk
01:31:24]} {[%emt 00:00:04]} Nf6 {[%clk 01:30:45]} {[%emt 00:00:15]} 3. e3
{[%clk 01:31:38]} {[%emt 00:00:16]} c5 {[%clk 01:30:14]} {[%emt 00:01:02]} 4.
f4 {[%clk 01:31:22]} {[%emt 00:00:45]} Nc6 {[%clk 01:30:01]} {[%emt 00:00:43]}
5. Bb5 {[%clk 01:31:28]} {[%emt 00:00:24]} Bd7 {[%clk 01:27:59]} {[%emt
00:02:33]} 6. Nf3 {[%clk 01:31:14]} {[%emt 00:00:42]} e6 {[%clk 01:26:14]}
{[%emt 00:02:15]} 7. O-O {[%clk 01:31:19]} {[%emt 00:00:25]} Qb6 {[%clk
01:22:57]} {[%emt 00:03:48]} 8. Bxc6 {[%clk 01:28:11]} {[%emt 00:03:37]} Bxc6
{[%clk 01:22:02]} {[%emt 00:01:25]} 9. Ne5 {[%clk 01:27:30]} {[%emt 00:01:10]}
Qc7 {[%clk 01:13:52]} {[%emt 00:08:41]} 10. d3 {[%clk 01:24:52]} {[%emt
00:03:07]} O-O-O {[%clk 01:10:16]} {[%emt 00:04:07]} 11. Nd2 {[%clk 01:22:23]}
{[%emt 00:02:58]} Be8 {[%clk 01:10:23]} {[%emt 00:00:23]} 12. Ndf3 {[%clk
01:21:24]} {[%emt 00:01:28]} Ng8 {[%clk 01:07:20]} {[%emt 00:03:34]} 13. d4
{[%clk 01:18:36]} {[%emt 00:03:16]} f6 {[%clk 01:06:51]} {[%emt 00:01:01]} 14.
Nd3 {[%clk 01:18:42]} {[%emt 00:00:23]} c4 {[%clk 01:01:09]} {[%emt 00:06:13]}
15. Nf2 {[%clk 01:17:13]} {[%emt 00:01:59]} Bb5 {[%clk 00:57:36]} {[%emt
00:04:04]} 16. c3 {[%clk 01:16:00]} {[%emt 00:01:42]} cxb3 {[%clk 00:55:42]}
{[%emt 00:02:23]} 17. Re1 {[%clk 01:16:23]} {[%emt 00:00:08]} bxa2 {[%clk
00:56:05]} {[%emt 00:00:07]} 18. Rxa2 {[%clk 01:16:25]} {[%emt 00:00:27]} a6
{[%clk 00:54:39]} {[%emt 00:01:56]} 19. Ba3 {[%clk 01:15:25]} {[%emt 00:01:29]}
Ne7 {[%clk 00:49:13]} {[%emt 00:05:57]} 20. Nd3 {[%clk 01:12:30]} {[%emt
00:03:24]} Qc4 {[%clk 00:46:55]} {[%emt 00:02:49]} 21. Nb4 {[%clk 01:11:03]}
{[%emt 00:01:57]} Nf5 {[%clk 00:44:25]} {[%emt 00:03:00]} 22. Nd2 {[%clk
01:11:08]} {[%emt 00:00:25]} Qc7 {[%clk 00:44:15]} {[%emt 00:00:40]} 23. Qc2
{[%clk 01:10:52]} {[%emt 00:00:45]} Nd6 {[%clk 00:42:49]} {[%emt 00:01:57]} 24.
Nd3 {[%clk 01:07:33]} {[%emt 00:03:49]} Nc4 {[%clk 00:35:35]} {[%emt 00:07:45]}
25. Bxf8 {[%clk 01:06:51]} {[%emt 00:01:12]} Rhxf8 {[%clk 00:34:30]} {[%emt
00:01:36]} 26. Nxc4 {[%clk 01:03:51]} {[%emt 00:03:29]} Bxc4 {[%clk 00:34:34]}
{[%emt 00:00:26]} 27. Rb2 {[%clk 01:04:08]} {[%emt 00:00:12]} Bxd3 {[%clk
00:32:43]} {[%emt 00:02:22]} 28. Qxd3 {[%clk 01:04:32]} {[%emt 00:00:06]} f5
{[%clk 00:33:04]} {[%emt 00:00:08]} 29. Reb1 {[%clk 01:04:48]} {[%emt
00:00:14]} b5 {[%clk 00:32:50]} {[%emt 00:00:45]} 30. Qc2 {[%clk 00:59:06]}
{[%emt 00:06:10]} Rd6 {[%clk 00:30:20]} {[%emt 00:03:02]} 31. Qb3 {[%clk
00:59:14]} {[%emt 00:00:21]} Rc6 {[%clk 00:30:06]} {[%emt 00:00:44]} 32. Qa3
{[%clk 00:59:00]} {[%emt 00:00:45]} Rd8 {[%clk 00:30:23]} {[%emt 00:00:13]} 33.
Rb3 {[%clk 00:58:47]} {[%emt 00:00:43]} Rdd6 {[%clk 00:30:11]} {[%emt
00:00:42]} 34. Kf2 {[%clk 00:58:14]} {[%emt 00:01:03]} Rc4 {[%clk 00:28:50]}
{[%emt 00:01:51]} 35. Ke2 {[%clk 00:57:43]} {[%emt 00:01:01]} Ra4 {[%clk
00:28:55]} {[%emt 00:00:26]} 36. Qb2 {[%clk 00:57:45]} {[%emt 00:00:27]} Qa5
{[%clk 00:28:44]} {[%emt 00:00:42]} 37. Kd3 {[%clk 00:56:58]} {[%emt 00:01:16]}
Ra2 {[%clk 00:27:50]} {[%emt 00:01:23]} 38. Qc1 {[%clk 00:57:21]} {[%emt
00:00:07]} Qc7 {[%clk 00:28:03]} {[%emt 00:00:18]} 39. R1b2 {[%clk 00:57:39]}
{[%emt 00:00:12]} Rxb2 {[%clk 00:27:43]} {[%emt 00:00:50]} 40. Qxb2 {[%clk
00:57:58]} {[%emt 00:00:10]} Qc4+ {[%clk 00:27:59]} {[%emt 00:00:15]} 41. Kd2
{[%clk 00:57:57]} {[%emt 00:00:31]} Qf1 {[%clk 00:26:25]} {[%emt 00:02:03]} 42.
g3 {[%clk 00:58:16]} {[%emt 00:00:11]} Kc7 {[%clk 00:23:11]} {[%emt 00:03:44]}
43. Ra3 {[%clk 00:57:39]} {[%emt 00:01:07]} Qf2+ {[%clk 00:23:29]} {[%emt
00:00:12]} 44. Kc1 {[%clk 00:58:00]} {[%emt 00:00:10]} Qxe3+ {[%clk 00:23:30]}
{[%emt 00:00:29]} 45. Kb1 {[%clk 00:58:15]} {[%emt 00:00:15]} Qd3+ {[%clk
00:23:02]} {[%emt 00:00:57]} 46. Ka1 {[%clk 00:58:19]} {[%emt 00:00:26]} Qd1+
{[%clk 00:22:19]} {[%emt 00:01:13]} 47. Ka2 {[%clk 00:58:39]} {[%emt 00:00:10]}
Qf1 {[%clk 00:19:25]} {[%emt 00:03:23]} 48. Rb3 {[%clk 00:58:02]} {[%emt
00:01:06]} Rc6 {[%clk 00:16:53]} {[%emt 00:03:03]} 49. Qa3 {[%clk 00:57:39]}
{[%emt 00:00:52]} Qe2+ {[%clk 00:17:05]} {[%emt 00:00:19]} 50. Rb2 {[%clk
00:57:58]} {[%emt 00:00:11]} Qc4+ {[%clk 00:17:14]} {[%emt 00:00:21]} 51. Ka1
{[%clk 00:58:19]} {[%emt 00:00:08]} Kb6 {[%clk 00:17:09]} {[%emt 00:00:36]} 52.
Qe7 {[%clk 00:58:01]} {[%emt 00:00:48]} Qxc3 {[%clk 00:14:21]} {[%emt
00:03:17]} 53. Qd8+ {[%clk 00:58:17]} {[%emt 00:00:14]} Rc7 {[%clk 00:13:41]}
{[%emt 00:01:10]} 54. Kb1 {[%clk 00:58:09]} {[%emt 00:00:38]} Kb7 {[%clk
00:13:16]} {[%emt 00:00:55]} 55. Qd6 {[%clk 00:58:11]} {[%emt 00:00:29]} Qxd4
{[%clk 00:13:09]} {[%emt 00:00:37]} 0-1

[Event "Régional Jeunes Occitanie 2024"]
[Site "L'Isle Jourdain, France"]
[Date "2024.02.22"]
[Round "3.4"]
[White "PERROUIN, Alexian"]
[Black "MEDJEBER, Mohamed"]
[Result "1-0"]
[TimeControl "1h30 + 30s/cps"]
[WhiteElo "1829"]
[BlackElo "1474"]

1. e4 {[%clk 01:30:58]} {[%emt 00:00:02]} c5 {[%clk 01:30:53]} {[%emt
00:00:07]} 2. Nf3 {[%clk 01:31:24]} {[%emt 00:00:03]} Nc6 {[%clk 01:31:18]}
{[%emt 00:00:05]} 3. Bb5 {[%clk 01:31:52]} {[%emt 00:00:03]} d6 {[%clk
01:30:43]} {[%emt 00:01:06]} 4. O-O {[%clk 01:31:53]} {[%emt 00:00:28]} Bd7
{[%clk 01:29:32]} {[%emt 00:01:41]} 5. Re1 {[%clk 01:32:05]} {[%emt 00:00:17]}
e6 {[%clk 01:28:58]} {[%emt 00:01:04]} 6. c3 {[%clk 01:31:19]} {[%emt
00:01:16]} Nf6 {[%clk 01:22:43]} {[%emt 00:06:46]} 7. d4 {[%clk 01:30:38]}
{[%emt 00:01:11]} Be7 {[%clk 01:17:55]} {[%emt 00:05:17]} 8. Bf1 {[%clk
01:20:42]} {[%emt 00:10:27]} cxd4 {[%clk 01:13:31]} {[%emt 00:04:55]} 9. cxd4
{[%clk 01:21:00]} {[%emt 00:00:12]} d5 {[%clk 01:10:56]} {[%emt 00:03:05]} 10.
e5 {[%clk 01:20:04]} {[%emt 00:01:25]} Ne4 {[%clk 01:08:15]} {[%emt 00:03:11]}
11. Nbd2 {[%clk 01:18:11]} {[%emt 00:02:23]} Nxd2 {[%clk 00:58:40]} {[%emt
00:10:06]} 12. Bxd2 {[%clk 01:17:10]} {[%emt 00:01:31]} Qb6 {[%clk 00:55:33]}
{[%emt 00:03:37]} 13. Bc3 {[%clk 01:01:16]} {[%emt 00:16:24]} a5 {[%clk
00:49:26]} {[%emt 00:06:37]} 14. Bd3 {[%clk 00:57:45]} {[%emt 00:04:00]} O-O
{[%clk 00:38:55]} {[%emt 00:11:01]} 15. h4 {[%clk 00:54:36]} {[%emt 00:03:38]}
Nb4 {[%clk 00:37:09]} {[%emt 00:02:17]} 16. Bb1 {[%clk 00:54:04]} {[%emt
00:01:02]} Rfc8 {[%clk 00:30:51]} {[%emt 00:06:48]} 17. Re3 {[%clk 00:46:50]}
{[%emt 00:07:44]} h6 {[%clk 00:24:36]} {[%emt 00:06:45]} 18. a3 {[%clk
00:46:10]} {[%emt 00:01:11]} Nc6 {[%clk 00:23:15]} {[%emt 00:01:50]} 19. Nh2
{[%clk 00:38:57]} {[%emt 00:07:43]} Bxh4 {[%clk 00:19:41]} {[%emt 00:04:05]} 20.
Qg4 {[%clk 00:28:48]} {[%emt 00:10:38]} Be7 {[%clk 00:14:40]} {[%emt 00:05:31]}
21. Rg3 {[%clk 00:28:36]} {[%emt 00:00:41]} Bf8 {[%clk 00:13:23]} {[%emt
00:01:47]} 22. Qf4 {[%clk 00:23:22]} {[%emt 00:05:45]} g5 {[%clk 00:11:03]}
{[%emt 00:02:50]} 23. Ng4 {[%clk 00:21:27]} {[%emt 00:02:25]} Qd8 {[%clk
00:09:44]} {[%emt 00:01:49]} 24. Nf6+ {[%clk 00:21:49]} {[%emt 00:00:07]} Kh8
{[%clk 00:09:16]} {[%emt 00:00:58]} 25. Rxg5 {[%clk 00:21:42]} {[%emt
00:00:38]} Bg7 {[%clk 00:08:48]} {[%emt 00:00:58]} 26. Rh5 {[%clk 00:21:37]}
{[%emt 00:00:34]} Qf8 {[%clk 00:08:09]} {[%emt 00:01:09]} 27. Nxd7 {[%clk
00:21:47]} {[%emt 00:00:20]} Qg8 {[%clk 00:08:19]} {[%emt 00:00:20]} 28. Rxh6+
{[%clk 00:22:07]} {[%emt 00:00:10]} Bxh6 {[%clk 00:08:30]} {[%emt 00:00:19]} 29.
Qxh6+ {[%clk 00:22:34]} {[%emt 00:00:03]} Qh7 {[%clk 00:08:40]} {[%emt
00:00:21]} 30. Qxh7# {[%clk 00:23:00]} {[%emt 00:00:04]} 1-0

[Event "Régional Jeunes Occitanie 2024"]
[Site "L'Isle Jourdain, France"]
[Date "2024.02.22"]
[Round "3.1"]
[White "ROUX, Nathan"]
[Black "BEUCHER, Gauthier"]
[Result "0-1"]
[TimeControl "1h30 + 30s/cps"]
[WhiteElo "1810"]
[BlackElo "1484"]

1. d4 {[%clk 01:30:57]} {[%emt 00:00:02]} Nf6 {[%clk 01:30:31]} {[%emt
00:00:30]} 2. c4 {[%clk 01:31:19]} {[%emt 00:00:07]} g6 {[%clk 01:30:32]}
{[%emt 00:00:29]} 3. Nc3 {[%clk 01:31:42]} {[%emt 00:00:07]} Bg7 {[%clk
01:30:51]} {[%emt 00:00:11]} 4. e4 {[%clk 01:32:04]} {[%emt 00:00:08]} d6
{[%clk 01:31:15]} {[%emt 00:00:07]} 5. Be2 {[%clk 01:32:26]} {[%emt 00:00:07]}
O-O {[%clk 01:31:31]} {[%emt 00:00:14]} 6. Nf3 {[%clk 01:32:49]} {[%emt
00:00:07]} e5 {[%clk 01:31:35]} {[%emt 00:00:27]} 7. dxe5 {[%clk 01:33:07]}
{[%emt 00:00:11]} dxe5 {[%emt 00:00:23]} 8. Qxd8 Rxd8 {[%clk 01:31:41]} 9. Bg5
{[%clk 01:33:56]} {[%emt 00:00:20]} c6 {[%clk 01:25:45]} {[%emt 00:06:48]} 10.
O-O {[%clk 01:30:30]} {[%emt 00:03:55]} Re8 {[%clk 01:20:57]} {[%emt 00:05:18]}
11. Rfd1 {[%clk 01:25:38]} {[%emt 00:05:21]} Na6 {[%clk 01:17:48]} {[%emt
00:03:41]} 12. a3 {[%clk 01:20:02]} {[%emt 00:06:05]} Nc5 {[%clk 01:13:02]}
{[%emt 00:05:17]} 13. Nd2 {[%clk 01:18:22]} {[%emt 00:02:09]} Ne6 {[%clk
01:10:37]} {[%emt 00:02:56]} 14. Bxf6 {[%clk 01:01:07]} {[%emt 00:17:45]} Bxf6
{[%clk 01:10:54]} {[%emt 00:00:13]} 15. b4 {[%clk 01:01:11]} {[%emt 00:00:26]}
Nd4 {[%clk 01:06:28]} {[%emt 00:04:55]} 16. Bf1 {[%clk 00:59:10]} {[%emt
00:02:30]} Be6 {[%clk 00:57:42]} {[%emt 00:09:17]} 17. Rab1 {[%clk 00:46:48]}
{[%emt 00:12:50]} Bg7 {[%clk 00:48:11]} {[%emt 00:10:02]} 18. b5 {[%clk
00:38:04]} {[%emt 00:09:14]} Bf8 {[%clk 00:44:54]} {[%emt 00:03:47]} 19. a4
{[%clk 00:36:29]} {[%emt 00:02:05]} Reb8 {[%clk 00:39:16]} {[%emt 00:06:08]} 20.
a5 {[%clk 00:32:37]} {[%emt 00:04:22]} a6 {[%clk 00:31:16]} {[%emt 00:08:31]}
21. b6 {[%clk 00:28:08]} {[%emt 00:04:58]} Rd8 {[%clk 00:28:31]} {[%emt
00:03:15]} 22. Na4 {[%clk 00:22:37]} {[%emt 00:06:01]} f6 {[%clk 00:27:00]}
{[%emt 00:02:02]} 23. c5 {[%clk 00:21:51]} {[%emt 00:01:15]} Rd7 {[%clk
00:22:08]} {[%emt 00:05:23]} 24. Bc4 {[%clk 00:17:11]} {[%emt 00:05:10]} Rad8
{[%clk 00:21:03]} {[%emt 00:01:35]} 25. Kf1 {[%clk 00:15:38]} {[%emt 00:02:02]}
Bxc4+ {[%clk 00:18:31]} {[%emt 00:03:02]} 26. Nxc4 {[%clk 00:16:00]} {[%emt
00:00:09]} Ne6 {[%clk 00:18:44]} {[%emt 00:00:16]} 27. Nd6 {[%clk 00:13:25]}
{[%emt 00:03:05]} Bxd6 {[%clk 00:17:44]} {[%emt 00:01:30]} 28. cxd6 {[%clk
00:13:29]} {[%emt 00:00:26]} Rxd6 {[%clk 00:17:54]} {[%emt 00:00:21]} 29. Ke1
{[%clk 00:12:04]} {[%emt 00:01:54]} Kf7 {[%clk 00:16:17]} {[%emt 00:02:07]} 30.
g3 {[%clk 00:10:39]} {[%emt 00:01:56]} Ke7 {[%clk 00:15:07]} {[%emt 00:01:41]}
31. Rxd6 {[%clk 00:10:09]} {[%emt 00:01:00]} Rxd6 {[%clk 00:15:29]} {[%emt
00:00:07]} 32. Rd1 {[%clk 00:10:32]} {[%emt 00:00:07]} Rxd1+ {[%clk 00:15:34]}
{[%emt 00:00:25]} 33. Kxd1 {[%clk 00:11:00]} {[%emt 00:00:01]} Kd6 {[%clk
00:15:44]} {[%emt 00:00:20]} 34. Kc2 {[%clk 00:10:59]} {[%emt 00:00:32]} f5
{[%clk 00:14:46]} {[%emt 00:01:28]} 35. f3 {[%clk 00:09:55]} {[%emt 00:01:34]}
Nd4+ {[%clk 00:14:44]} {[%emt 00:00:32]} 36. Kd3 {[%clk 00:09:51]} {[%emt
00:00:33]} Nxf3 {[%clk 00:14:00]} {[%emt 00:01:14]} 37. Kc4 {[%clk 00:08:15]}
{[%emt 00:02:06]} Nd2+ {[%clk 00:14:18]} {[%emt 00:00:12]} 38. Kb4 {[%clk
00:08:39]} {[%emt 00:00:07]} Nxe4 {[%clk 00:14:40]} {[%emt 00:00:08]} 0-1